Department Family,Entity,Date,Expenses Type,Expense Area,Supplier,Transaction Number,  Total  ,
Department of Health,The Christie NHS Foundation Trust,24/06/2021,Medical Equipment,Clin Support & Spec Surgery,NHS SUPPLY CHAIN,0000669226," 213,748.01 ",
Department of Health,The Christie NHS Foundation Trust,03/06/2021, Drugs, Drugs,BAXTER HEALTHCARE LTD,0000667954," 104,150.24 ",
Department of Health,The Christie NHS Foundation Trust,10/06/2021, Drugs, Drugs,BAXTER HEALTHCARE LTD,0000667955," 71,642.86 ",
Department of Health,The Christie NHS Foundation Trust,10/06/2021, Drugs, Drugs,BAXTER HEALTHCARE LTD,0000667963," 71,600.95 ",
Department of Health,The Christie NHS Foundation Trust,10/06/2021, Drugs, Drugs,BAXTER HEALTHCARE LTD,0000668133," 86,205.23 ",
Department of Health,The Christie NHS Foundation Trust,03/06/2021, Drugs, Drugs,BAXTER HEALTHCARE LTD,0000667441," 328,441.82 ",
Department of Health,The Christie NHS Foundation Trust,03/06/2021, Drugs, Drugs,BAXTER HEALTHCARE LTD,0000667455," 90,615.76 ",
Department of Health,The Christie NHS Foundation Trust,03/06/2021, Drugs, Drugs,BAXTER HEALTHCARE LTD,0000667485," 116,635.43 ",
Department of Health,The Christie NHS Foundation Trust,03/06/2021, Drugs, Drugs,BAXTER HEALTHCARE LTD,0000667571," 29,228.10 ",
Department of Health,The Christie NHS Foundation Trust,03/06/2021, Drugs, Drugs,BAXTER HEALTHCARE LTD,0000667575," 123,675.02 ",
Department of Health,The Christie NHS Foundation Trust,03/06/2021, Drugs, Drugs,BAXTER HEALTHCARE LTD,0000668713," 351,380.40 ",
Department of Health,The Christie NHS Foundation Trust,17/06/2021, Drugs, Drugs,BAXTER HEALTHCARE LTD,0000668549," 104,813.90 ",
Department of Health,The Christie NHS Foundation Trust,17/06/2021, Drugs, Drugs,BAXTER HEALTHCARE LTD,0000668550," 104,401.92 ",
Department of Health,The Christie NHS Foundation Trust,24/06/2021, Drugs, Drugs,BAXTER HEALTHCARE LTD,0000668844," 47,400.19 ",
Department of Health,The Christie NHS Foundation Trust,24/06/2021, Drugs, Drugs,BAXTER HEALTHCARE LTD,0000668846," 74,945.39 ",
Department of Health,The Christie NHS Foundation Trust,03/06/2021, Drugs, Drugs,BAXTER HEALTHCARE LTD,0000668962," 358,148.40 ",
Department of Health,The Christie NHS Foundation Trust,10/06/2021, Drugs, Drugs,BAXTER HEALTHCARE LTD,0000668445," 103,675.25 ",
Department of Health,The Christie NHS Foundation Trust,17/06/2021, Drugs, Drugs,BAXTER HEALTHCARE LTD,0000668447," 75,774.23 ",
Department of Health,The Christie NHS Foundation Trust,17/06/2021, Drugs, Drugs,BAXTER HEALTHCARE LTD,0000668449," 91,971.58 ",
Department of Health,The Christie NHS Foundation Trust,24/06/2021, Drugs, Drugs,BAXTER HEALTHCARE LTD,0000668847," 100,213.25 ",
Department of Health,The Christie NHS Foundation Trust,24/06/2021, Drugs, Drugs,BAXTER HEALTHCARE LTD,0000668961," 80,115.83 ",
Department of Health,The Christie NHS Foundation Trust,24/06/2021, Drugs, Drugs,BAXTER HEALTHCARE LTD,0000669366," 109,581.88 ",
Department of Health,The Christie NHS Foundation Trust,10/06/2021, Drugs, Drugs,HEALTHCARE AT HOME LTD,0000668899," 28,042.00 ",
Department of Health,The Christie NHS Foundation Trust,24/06/2021, Drugs, Drugs,HEALTHCARE AT HOME LTD,0000669553," 38,731.00 ",
Department of Health,The Christie NHS Foundation Trust,03/06/2021, Drugs, Drugs,HEALTHCARE AT HOME LTD,0000668854," 33,330.00 ",
Department of Health,The Christie NHS Foundation Trust,17/06/2021, Drugs, Drugs,HEALTHCARE AT HOME LTD,0000668855," 26,751.00 ",
Department of Health,The Christie NHS Foundation Trust,03/06/2021, Drugs, Drugs,MID CHESHIRE HOSPITALS NHS FT,0000662552," 129,989.65 ",
Department of Health,The Christie NHS Foundation Trust,03/06/2021, Drugs, Drugs,MID CHESHIRE HOSPITALS NHS FT,0000665040," 116,594.82 ",
Department of Health,The Christie NHS Foundation Trust,10/06/2021, Drugs, Drugs,THE CHRISTIE CLINIC (HCA),0000668199," 34,521.00 ",
Department of Health,The Christie NHS Foundation Trust,15/06/2021,Blood Products, Network Services,DD NHS BLOOD AND TRANSPLANT,0000669924," 160,265.00 ",
Department of Health,The Christie NHS Foundation Trust,03/06/2021,Medical Equipment, Network Services,GILEAD SCIENCES LTD,0000667512," 224,360.80 ",
Department of Health,The Christie NHS Foundation Trust,10/06/2021,Paed Anaesthetic Service, Network Services,MANCHESTER UNIVERSITY NHS FT,0000663383," 44,205.33 ",
Department of Health,The Christie NHS Foundation Trust,03/06/2021,Provision Services - May 2021, Network Services,MID CHESHIRE HOSPITALS NHS FT,0000667216," 52,893.00 ",
Department of Health,The Christie NHS Foundation Trust,10/06/2021,Blood Products, Network Services,NHS BLOOD AND TRANSPLANT,0000668026," 28,346.66 ",
Department of Health,The Christie NHS Foundation Trust,10/06/2021,Service Transfer Costs - April 2021, Network Services,TAMESIDE AND GLOSSOP INTEGRATED CARE NHS,0000666791," 56,640.00 ",
Department of Health,The Christie NHS Foundation Trust,17/06/2021,Service Transfer Costs - May 2021, Network Services,TAMESIDE AND GLOSSOP INTEGRATED CARE NHS,0000668563," 56,640.00 ",
Department of Health,The Christie NHS Foundation Trust,24/06/2021,Medical Equipment Service Contract, Network Services,VARIAN MEDICAL SYSTEMS UK LTD,0000668710," 233,713.86 ",
Department of Health,The Christie NHS Foundation Trust,10/06/2021,Management Services Costs - April 2021,Christie Pathology Partner,CPP FACILITIES LLP,0000668437," 231,976.86 ",
Department of Health,The Christie NHS Foundation Trust,17/06/2021,Management Services Costs - July 2021,Christie Pathology Partner,CPP FACILITIES LLP,0000669591," 180,459.89 ",
Department of Health,The Christie NHS Foundation Trust,10/06/2021,Pathology Testing Services - April 2021,Christie Pathology Partner,THE CHRISTIE PATHOLOGY PARTNERSHIP LLP,0000668436," 488,129.18 ",
Department of Health,The Christie NHS Foundation Trust,17/06/2021,Pathology Testing Services - July 2021,Christie Pathology Partner,THE CHRISTIE PATHOLOGY PARTNERSHIP LLP,0000669589," 379,726.40 ",
Department of Health,The Christie NHS Foundation Trust,15/06/2021,"CNST, LTPS & PES - June 2021 Direct Debit", Quality & Standards,DD  NHS RESOLUTION,0000669810," 177,439.90 ",
Department of Health,The Christie NHS Foundation Trust,07/06/2021,Rates,Estates & Facilities,DD M/CR CITY COUNCIL (RATES),0000669413," 75,629.00 ",
Department of Health,The Christie NHS Foundation Trust,24/06/2021,Gas Supply Bill,Estates & Facilities,VITAL ENERGI SOLUTIONS LTD,0000668821," 99,680.62 ",
Department of Health,The Christie NHS Foundation Trust,08/06/2021,Professional Services, Human Resources,DD NHS SHARED BUSINESS SERVICES LTD,0000669498," 32,731.09 ",
Department of Health,The Christie NHS Foundation Trust,24/06/2021,PET-CT Appointments,Christie Medical Physics,ALLIANCE MEDICAL LTD,0000669568," 211,460.00 ",
Department of Health,The Christie NHS Foundation Trust,10/06/2021,PET-CT Appointments,Christie Medical Physics,ALLIANCE MEDICAL LTD,0000667730," 200,015.00 ",
Department of Health,The Christie NHS Foundation Trust,10/06/2021,Drugs,Christie Medical Physics,ALLIANCE MEDICAL RADIOPHARMACY LIMITED,0000668293," 27,991.14 ",
Department of Health,The Christie NHS Foundation Trust,24/06/2021,Software and IT Consultancy, Capital,AIRE LOGIC LIMITED,0000669747," 28,170.00 ",
Department of Health,The Christie NHS Foundation Trust,24/06/2021,Project Management Fee, Capital,ARCADIS LLP,0000669500," 60,815.41 ",
Department of Health,The Christie NHS Foundation Trust,10/06/2021,Design & Consultancy Costs, Capital,F PARKINSON LTD,0000668342," 93,219.49 ",
Department of Health,The Christie NHS Foundation Trust,03/06/2021,Construction Costs, Capital,INGHAM AND GARNER LTD,0000668241," 53,354.89 ",
Department of Health,The Christie NHS Foundation Trust,03/06/2021,Project Management Costs, Capital,INTEGRATED HEALTH PROJECTS,0000668825," 2,289,410.14 ",
Department of Health,The Christie NHS Foundation Trust,03/06/2021,Air Handling Unit Replacement, Capital,MEDWAY HEATING BOLTON LTD,0000667770," 36,511.74 ",
Department of Health,The Christie NHS Foundation Trust,25/06/2021,Medical Equipment, Capital,SIGMAPHI,0000670757," 79,361.20 ",
Department of Health,The Christie NHS Foundation Trust,03/06/2021,Medical Equipment, Capital,SOUTHERN SCIENTIFIC LTD,0000668540," 32,463.70 ",
Department of Health,The Christie NHS Foundation Trust,10/06/2021,Project Management Costs, Capital,VINCI CONSTRUCTION UK LIMITED,0000669353," 1,555,972.60 ",
Department of Health,The Christie NHS Foundation Trust,10/06/2021,Tiered Car Park Construction, Capital,VINCI CONSTRUCTION UK LIMITED,0000669350," 362,302.00 ",
Department of Health,The Christie NHS Foundation Trust,24/06/2021,Energy Costs, Capital,VITAL ENERGI SOLUTIONS LTD,0000669242," 625,985.47 ",
Department of Health,The Christie NHS Foundation Trust,24/06/2021,Energy Costs, Capital,VITAL ENERGI SOLUTIONS LTD,0000667517," 338,043.00 ",
Department of Health,The Christie NHS Foundation Trust,24/06/2021,Energy Costs, Capital,VITAL ENERGI SOLUTIONS LTD,0000667518," 376,621.00 ",
Department of Health,The Christie NHS Foundation Trust,10/06/2021,GM Cancer Funding, Manchester Cancer,ALLIANCE MEDICAL LTD,0000665161," 248,600.00 ",
Department of Health,The Christie NHS Foundation Trust,10/06/2021,Mobile Services Recharge Costs, Manchester Cancer,ALLIANCE MEDICAL LTD,0000665308," 290,000.00 ",
Department of Health,The Christie NHS Foundation Trust,10/06/2021,Manchester Cancer Trust Invoice, Manchester Cancer,ARDEN & GEM CSU,0000665078," 40,000.00 ",
Department of Health,The Christie NHS Foundation Trust,17/06/2021, Print Management Service, Digital Services,APOGEE CORPORATION LTD,0000668779," 37,544.10 ",
Department of Health,The Christie NHS Foundation Trust,17/06/2021,Security Licensing Package, Digital Services,INSIGHT DIRECT (UK) LTD,0000668214," 90,000.00 ",
Department of Health,The Christie NHS Foundation Trust,17/06/2021,Recharge Costs 2019/20, Digital Services,MANCHESTER UNIVERSITY NHS FT,0000668324," 29,389.00 ",
Department of Health,The Christie NHS Foundation Trust,17/06/2021,Recharge Costs 2020/21, Digital Services,MANCHESTER UNIVERSITY NHS FT,0000668327," 30,271.00 ",
Department of Health,The Christie NHS Foundation Trust,17/06/2021,Recharge Costs 2018/19, Digital Services,MANCHESTER UNIVERSITY NHS FT,0000668320," 28,427.00 ",
Department of Health,The Christie NHS Foundation Trust,17/06/2021,Phone System Purchase, Digital Services,NG BAILEY IT SERVICES LIMITED,0000668248," 36,592.14 ",
Department of Health,The Christie NHS Foundation Trust,10/06/2021,System Support June Subscription, Digital Services,SYSTEM C HEALTHCARE,0000668474," 23,362.71 ",
Department of Health,The Christie NHS Foundation Trust,24/06/2021,Software and Maintenance Contract, Digital Services,TET LTD,0000668795," 25,807.68 ",
Department of Health,The Christie NHS Foundation Trust,03/06/2021,All Wards & Departments,The Christie NHS FT Balance,NHS SUPPLY CHAIN,0000667763," 86,052.66 ",
Department of Health,The Christie NHS Foundation Trust,03/06/2021,All Wards & Departments,The Christie NHS FT Balance,NHS SUPPLY CHAIN,0000667764," 75,115.18 ",
Department of Health,The Christie NHS Foundation Trust,17/06/2021,All Wards & Departments,The Christie NHS FT Balance,NHS SUPPLY CHAIN,0000669247," 68,498.72 ",
Department of Health,The Christie NHS Foundation Trust,17/06/2021,All Wards & Departments,The Christie NHS FT Balance,NHS SUPPLY CHAIN,0000669249," 82,129.69 ",
Department of Health,The Christie NHS Foundation Trust,24/06/2021,All Wards & Departments,The Christie NHS FT Balance,NHS SUPPLY CHAIN,0000669637," 89,368.60 ",
